bitfinex/quotes_ETHUSD_20220219
["timestamp","ask_amount","ask_price","bid_price","bid_amount"]
[1645249059612,0.52933339,2815.3,2815.2,2.71690638]
[1645249060413,0.52933339,2815.3,2815.2,1.82]
[1645249060615,0.52933339,2815.3,2815.2,1.90611616]
[1645249060813,0.52933339,2815.3,2815.2,2.80309301]
[1645249061413,0.52846829,2815.3,2815.2,1.90611616]
[1645249063953,0.52846829,2815.3,2815.2,2.8034086]
[1645249064354,0.52846829,2815.3,2815.2,1.90611616]
[1645249064553,0.52846829,2815.3,2815.2,0.82]
[1645249071049,0.52846829,2815.3,2815.2,0.3]
[1645249075810,0.52846829,2815.3,2815.1,1.10741408]
[1645249076804,0.52846829,2815.3,2815.1,1.10515352]
[1645249077252,0.52846829,2815.3,2815.1,1.10741411]
[1645249078052,0.52846829,2815.3,2815.1,1.10515352]
[1645249078354,0.52846829,2815.3,2815.1,2.00470655]
[1645249079357,0.52846829,2815.3,2815.1,2.00244596]
[1645249079554,0.52846829,2815.3,2815.1,2.30470655]
[1645249079753,0.52846829,2815.3,2815.2,0.3]
[1645249079957,0.52846829,2815.3,2815.1,2.00470655]
[1645249081096,0.75448859,2815.9,2815.1,2.00470655]
[1645249081297,1.50761221,2815.8,2815.1,2.00470655]
[1645249081696,1.50761221,2815.8,2815.1,2.00244596]
[1645249081896,1.50761221,2815.8,2815.3,0.00226051]
[1645249082898,1.50761221,2815.8,2815.1,2.00244596]
[1645249083097,1.50761221,2815.8,2815.3,0.00226055]
[1645249084001,1.50761221,2815.8,2815.1,2.00244596]
[1645249084398,1.50761221,2815.8,2815.3,0.00226055]
[1645249084658,2.04537569,2815.8,2815.3,0.00226055]
[1645249084857,1.50761221,2815.7,2815.3,0.00226055]
[1645249085256,1.50761221,2815.7,2815.1,2.00244596]
[1645249085457,1.50761221,2815.7,2815.3,0.00226053]
[1645249086464,1.50761221,2815.7,2815.1,2.00244596]
[1645249086663,1.50761221,2815.7,2815.3,0.00226053]
[1645249087659,1.50761221,2815.7,2815.1,2.00244596]
[1645249087859,1.50761221,2815.7,2815.3,0.00226053]
[1645249088900,1.50761221,2815.7,2815.1,0.89729244]
[1645249089102,1.50761221,2815.7,2815.3,0.00226053]
[1645249089903,1.50761221,2815.7,2815.6,0.5]
[1645249092151,1.50519767,2815.7,2815.6,0.5]
[1645249093751,1.50519767,2815.7,2815.1,1.81471337]
[1645249093952,1.50519767,2815.7,2815.3,0.00226058]
[1645249094955,1.50519767,2815.7,2815.1,1.81471337]
[1645249095152,1.50519767,2815.7,2815.3,0.00226053]
[1645249096002,1.50519767,2815.7,2815.1,1.81471337]
[1645249096399,1.50519767,2815.7,2815.3,0.00226053]
[1645249097400,1.50519767,2815.7,2815.2,0.89729244]
[1645249097601,1.50519767,2815.7,2815.3,0.00226053]
[1645249098406,1.50519767,2815.7,2815.2,0.90129598]
[1645249098603,1.50519767,2815.7,2815.2,0.00400354]
[1645249098801,1.50519767,2815.7,2815.3,0.00226053]
[1645249099650,1.50519767,2815.7,2815.2,0.00400354]
[1645249099856,1.50519767,2815.7,2815.3,0.00226053]
[1645249100855,1.50519767,2815.7,2815.2,0.00400354]
[1645249101362,1.50519767,2815.7,2815.3,0.00226053]
[1645249102154,1.50519767,2815.7,2815.2,0.00400354]
[1645249102360,1.50519767,2815.7,2815.3,0.00226053]
[1645249103398,1.50519767,2815.7,2815.2,0.90129598]
[1645249103600,1.50519767,2815.7,2815.3,0.00226053]
[1645249104497,1.50519767,2815.7,2815.2,0.00400354]
[1645249104705,1.50519767,2815.7,2815.3,0.00226053]
[1645249105699,1.31264454,2815.7,2815.2,0.90129598]
[1645249105897,1.31264454,2815.7,2815.3,0.00226053]
[1645249106701,3.08941544,2815.7,2815.3,0.00226053]
[1645249106902,3.08941544,2815.7,2815.1,0.00400354]
[1645249106903,1.7767709,2815.7,2815.1,0.00400354]
[1645249107164,1.7767709,2815.7,2815.3,0.00226053]
[1645249107557,2.6651709,2815.7,2815.3,0.00226053]
[1645249108157,2.80421744,2815.7,2815.1,0.00400354]
[1645249108456,2.80421744,2815.7,2814.7,1.14729244]
[1645249108457,2.592068,2815.7,2815.3,0.00221814]
[1645249108653,1.91581744,2815.7,2815.3,0.00221814]
[1645249109053,0.88853,2815.5,2815.3,0.00221814]
[1645249109256,1.77706,2815.5,2814.8,0.00400354]
[1645249109455,0.888536,2815.4,2814.8,0.00400354]
[1645249109654,1.07357805,2815.4,2815.3,0.00221814]
[1645249110354,1.96211805,2815.4,2815.3,0.00221814]
[1645249110555,2.85065805,2815.4,2814.8,0.00400354]
[1645249110755,2.85065805,2815.4,2815.2,0.00221813]
[1645249110756,0.88853,2815.3,2815.2,0.00221813]
[1645249111008,1.0490145,2815.3,2815.2,0.00221813]
[1645249111707,1.0490145,2815.3,2814.8,0.00400354]
[1645249111906,1.0490145,2815.3,2815.1,0.00205033]
[1645249112105,0.88853,2815.3,2815.1,0.00205033]
[1645249112307,1.42946932,2815.4,2815.1,0.00205033]
[1645249112908,1.42946932,2815.4,2814.7,0.00400354]
[1645249113107,1.42946932,2815.4,2815.1,0.00205033]
[1645249114115,1.42946932,2815.4,2814.7,0.00400354]
[1645249114116,3.20646932,2815.4,2814.7,0.00400354]
[1645249114309,4.09496712,2815.4,2815.1,0.00205033]
[1645249114668,3.5,2815.3,2815.1,0.00205033]
[1645249115054,4.09496712,2815.4,2815.1,0.00205033]
[1645249115259,4.09496712,2815.4,2814.7,0.00400354]
[1645249115553,4.09496712,2815.4,2815.1,0.00207081]
[1645249115953,3.5,2815.3,2815.1,0.00207081]
[1645249116356,4.09496712,2815.4,2815.1,0.00207081]
[1645249116357,2.31796932,2815.4,2815.1,0.00207081]
[1645249116555,2.31796932,2815.4,2814.7,0.00400354]
[1645249116556,3.5,2815.3,2814.7,0.00400354]
[1645249116856,3.5,2815.3,2815.1,0.00207081]
[1645249117056,2.31796932,2815.4,2815.1,0.00207081]
[1645249117460,3.5,2815.3,2815.1,0.00207081]
[1645249117657,3.20646932,2815.4,2814.7,0.00400354]
[1645249117863,3.20646932,2815.4,2815.1,0.00207079]
[1645249118062,2.31796932,2815.4,2815.1,0.00207079]
[1645249118261,3.5,2815.3,2815.1,0.00207079]
[1645249118701,2.31796932,2815.4,2815.1,0.00207079]
[1645249118904,2.31796932,2815.4,2814.7,0.00400354]
[1645249119104,1.42946932,2815.4,2815.1,0.00206782]
[1645249119307,3.5,2815.3,2815.1,0.00206782]
[1645249119507,1.42946932,2815.4,2815.1,0.00206782]
[1645249119908,3.5,2815.3,2815.1,0.00206782]
[1645249120208,1.42946932,2815.4,2814.7,0.00400354]
[1645249120415,3.5,2815.3,2815.1,0.0020678]
[1645249121309,3.5,2815.3,2814.7,0.00400354]
[1645249121509,3.5,2815.3,2815.1,0.00206782]
[1645249122654,3.5,2815.3,2815.1,0.00206825]
[1645249123653,3.5,2815.3,2814.7,0.00400354]
[1645249123855,3.5,2815.3,2815.1,0.00206825]
[1645249124861,3.5,2815.3,2814.7,0.00400354]
[1645249125061,3.16946,2815.6,2814.7,0.00400354]
[1645249125062,0.1776,2815.6,2814.7,0.90129598]
[1645249125260,0.53776348,2815.8,2815.1,0.00206825]
[1645249125261,4.03776348,2815.8,2815.1,0.00206825]
[1645249125458,0.53776348,2815.8,2815.1,0.00206825]
[1645249125899,1.50782224,2815.7,2815.1,0.00206825]
[1645249126203,1.50782224,2815.7,2814.8,0.00400354]
[1645249126403,1.50782224,2815.7,2815.3,0.00206813]
[1645249127000,2.93721214,2815.7,2815.3,0.00206813]
[1645249127199,3.5,2815.6,2815.3,0.00206813]
[1645249127402,1.50782224,2815.5,2814.8,0.00400354]
[1645249127602,1.50782224,2815.5,2815.3,0.00206815]
[1645249128603,1.50782224,2815.5,2814.9,0.00827354]
[1645249128604,1.50782224,2815.5,2814.8,0.00400354]
[1645249128802,1.50782224,2815.4,2815.3,0.00206811]
[1645249129001,1.50782224,2815.5,2815.3,0.00206811]
[1645249129206,1.50782224,2815.4,2815.3,0.00206811]
[1645249129669,1.50782224,2815.4,2814.8,0.00400354]
[1645249129860,7.21034193,2815.8,2815.2,0.00206813]
[1645249130060,1.507846,2815.7,2815.2,0.00206813]
[1645249130867,1.507846,2815.7,2814.8,0.00400354]
[1645249131061,1.507846,2815.7,2814.8,1.20129598]
[1645249131262,1.507846,2815.7,2815.3,0.00206814]
[1645249132164,1.507846,2815.7,2814.9,0.88819]
[1645249132363,1.507846,2815.7,2815.3,0.00206815]
[1645249133417,1.507846,2815.7,2815.0,0.00400354]
[1645249133610,1.507846,2815.7,2815.3,0.00206815]
[1645249134406,0.88831,2815.6,2815.3,0.00206815]
[1645249134607,1.507846,2815.5,2815.0,0.00400354]
[1645249134806,1.507846,2815.5,2815.3,0.00206815]
[1645249135708,1.507846,2815.5,2814.8,0.89729244]
[1645249135915,1.507846,2815.5,2815.3,0.00206812]
[1645249136909,1.507846,2815.5,2814.9,0.00400354]
[1645249137161,1.507846,2815.5,2815.3,0.00206812]
[1645249138154,1.507846,2815.5,2814.9,0.00400354]
[1645249138353,1.507846,2815.5,2815.3,0.00206812]
[1645249139354,1.507846,2815.5,2814.9,0.00400354]
[1645249139554,1.507846,2815.5,2815.3,0.00206812]
[1645249140555,1.77657,2815.6,2814.9,0.00400354]
[1645249140756,1.77657,2815.6,2815.3,0.00206812]
[1645249141702,1.77657,2815.6,2814.9,0.00400354]
[1645249141902,1.77657,2815.6,2815.3,0.00206814]
[1645249142707,0.88826,2815.6,2815.3,0.00206814]
[1645249142905,0.88826,2815.6,2814.9,0.00400354]
[1645249143103,0.88826,2815.6,2815.3,0.00206814]
[1645249144106,0.88826,2815.6,2815.0,0.00400354]
[1645249144304,0.88826,2815.6,2815.3,0.00206814]
[1645249145354,0.88826,2815.6,2815.0,0.00400354]
[1645249145553,0.88826,2815.6,2815.3,0.00206813]
[1645249146562,1.77653,2815.6,2814.9,0.00400354]
[1645249146758,1.77653,2815.6,2815.3,0.00206813]
[1645249147754,1.77653,2815.6,2814.9,0.00400354]
[1645249147956,1.77653,2815.6,2815.3,0.00206813]
[1645249149004,1.77653,2815.6,2814.8,0.89729244]
[1645249149208,1.77653,2815.6,2815.3,0.00206814]
[1645249150202,1.77653,2815.6,2815.0,0.00400354]
[1645249150403,1.77653,2815.6,2815.3,0.00206814]
[1645249151403,1.77653,2815.6,2815.0,0.00400354]
[1645249151607,1.77653,2815.6,2815.3,0.00206814]
[1645249152554,1.77653,2815.6,2815.0,0.00400354]
[1645249152754,1.77653,2815.6,2815.3,0.00206814]
[1645249152958,4.09074338,2815.8,2815.3,0.00206814]
[1645249153159,0.53776348,2815.8,2815.3,0.00206814]
[1645249153358,0.53776348,2815.8,2815.4,0.52]
[1645249153858,0.53776348,2815.8,2815.5,1.19729244]
[1645249154055,0.53776348,2815.8,2815.6,1.02]
[1645249154256,0.53776348,2815.8,2815.6,0.52]
[1645249154759,0.53776348,2815.8,2815.6,0.5]
[1645249155155,0.53776348,2815.8,2815.2,1.41729244]
[1645249155156,0.53776348,2815.8,2815.3,0.00206822]
[1645249156105,0.53776348,2815.8,2815.2,0.82]
[1645249156505,0.53776348,2815.8,2815.3,0.00206817]
[1645249157304,0.53776348,2815.8,2815.2,0.82]
[1645249157504,0.53776348,2815.8,2815.3,0.00206817]
[1645249158313,4.03776348,2815.8,2815.3,0.00206817]
[1645249158508,1.42595168,2815.8,2815.2,0.52]
[1645249158709,1.42595168,2815.8,2815.3,0.00206817]
[1645249159115,2.31414168,2815.8,2815.3,0.00206817]
[1645249159765,3.5,2815.7,2815.1,1.2189]
[1645249159963,7.59444083,2815.7,2815.3,0.00206817]
[1645249160560,2.39607251,2815.6,2815.3,0.00206817]
[1645249160763,5.89622161,2815.5,2815.3,0.00206817]
[1645249160957,9.44997921,2815.4,2815.0,0.00400354]
[1645249161157,1.50780251,2815.3,2815.0,0.00400354]
[1645249161359,1.50780251,2815.3,2814.9,0.00827363]
[1645249161557,3.5,2815.2,2814.9,0.00827363]
[1645249161959,4.38844,2815.2,2814.9,0.00827363]
[1645249162161,4.38844,2815.2,2814.7,0.00400354]
[1645249162366,4.38844,2815.2,2814.9,0.00206825]
[1645249162857,0.83746071,2815.1,2814.9,0.00206825]
[1645249163261,0.88846,2815.1,2814.7,0.00400354]
[1645249163516,0.88849,2815.0,2814.9,0.00206827]
[1645249164612,0.88849,2814.9,2814.5,0.90129598]
[1645249164815,0.88849,2814.9,2814.8,0.0020683]
[1645249165812,0.88849,2814.9,2814.6,0.00400354]
[1645249166013,0.88849,2814.9,2814.7,0.00206834]
[1645249166916,0.88849,2814.9,2814.6,0.90129598]
[1645249167159,0.88849,2814.9,2814.7,0.00206835]
[1645249168063,0.88849,2814.9,2814.6,0.90129598]
[1645249168258,0.88849,2814.9,2814.7,0.00206836]
[1645249169060,0.53295082,2815.0,2814.7,0.00206836]
[1645249169261,0.53295082,2815.0,2814.6,0.00400354]
[1645249169562,0.53295082,2815.0,2814.7,0.00206836]
[1645249170561,0.53295082,2815.0,2814.6,0.00400354]
[1645249170761,0.53295082,2815.0,2814.7,0.00206834]
[1645249171204,1.42143082,2815.0,2814.7,0.00206834]
[1645249171806,1.42143082,2815.0,2814.6,0.00400354]
[1645249172006,2.30991082,2815.0,2814.7,0.00206834]
[1645249173005,2.30991082,2815.0,2814.6,0.00400354]
[1645249173206,2.30991082,2815.0,2814.7,0.00206834]
[1645249174208,2.30991082,2815.0,2814.6,0.00400354]
[1645249174407,2.30991082,2815.0,2814.7,0.00206834]
[1645249175257,2.30991082,2815.0,2814.6,0.00400354]
[1645249175563,2.30991082,2815.0,2814.7,0.00206834]
[1645249176458,2.30991082,2815.0,2814.6,0.00400354]
[1645249176860,2.30991082,2815.0,2814.7,0.00206834]
[1645249177460,1.42143082,2815.0,2814.7,0.00206834]
[1645249177662,1.42143082,2815.0,2814.6,0.00400354]
[1645249177863,1.42143082,2815.0,2814.6,0.90129598]
[1645249178076,1.42143082,2815.0,2814.7,0.00206834]
[1645249178266,1.42143082,2815.0,2814.8,0.5]
[1645249178514,1.42143082,2815.0,2814.7,0.00607188]
[1645249178912,1.42143082,2815.0,2814.5,0.90129598]
[1645249179111,1.42143082,2815.0,2814.7,0.00206834]
[1645249180114,1.42143082,2815.0,2814.6,0.90129598]
[1645249180313,1.42143082,2815.0,2814.7,0.00206834]
[1645249181412,1.42143082,2815.0,2814.6,0.00400354]
[1645249181614,1.42143082,2815.0,2814.7,0.00206834]
[1645249182659,1.42143082,2815.0,2814.6,0.00400354]
[1645249182860,1.42143082,2815.0,2814.7,0.00206834]
[1645249183370,3.5,2814.9,2814.7,0.00206834]
[1645249183563,4.3885637,2814.9,2814.7,0.00206834]
[1645249183766,4.3885637,2814.9,2814.3,0.00827459]
[1645249183767,3.5,2814.8,2814.3,0.00400354]
[1645249183964,3.5,2814.8,2814.7,0.00206836]
[1645249183965,5.81874783,2814.8,2814.7,0.00206836]
[1645249184165,6.43831845,2814.8,2814.7,0.00206836]
[1645249184565,0.89091986,2814.6,2814.2,0.00827467]
[1645249184765,5.89700062,2814.5,2814.2,0.00827467]
[1645249185062,4.38874,2814.5,2813.9,0.00400354]
[1645249185665,6.16622,2814.5,2813.9,0.00400354]
[1645249185911,0.88873,2814.3,2813.9,0.00400354]
[1645249186308,0.88873,2814.3,2814.1,0.001281]
[1645249186708,4.38873,2814.3,2814.1,0.001281]
[1645249187309,5.27746,2814.3,2813.9,0.00195774]
[1645249187510,5.27746,2814.3,2814.1,0.001281]
[1645249188113,1.77746,2814.3,2814.1,0.001281]
[1645249188312,0.88873,2814.3,2814.1,0.001281]
[1645249188516,4.38873,2814.3,2813.9,0.00195774]
[1645249188712,4.38873,2814.3,2814.1,0.00128152]
[1645249189113,3.5,2814.2,2814.1,0.00128152]
[1645249189515,0.88873,2814.3,2814.1,0.00128152]
[1645249189764,0.88873,2814.3,2813.9,0.00195774]
[1645249189962,0.88873,2814.3,2814.0,0.00128154]
[1645249190963,0.88873,2814.3,2813.9,0.00195774]
[1645249191171,0.88873,2814.3,2814.0,0.00128154]
[1645249191365,1.77746,2814.3,2814.0,0.00128154]
[1645249192171,1.77746,2814.3,2813.9,0.00195774]
[1645249192370,1.77746,2814.3,2814.0,0.0022772]
[1645249193412,1.77746,2814.3,2813.9,0.00195774]
[1645249193607,1.77746,2814.3,2814.0,0.0022772]
[1645249194308,0.88873,2814.3,2814.0,0.0022772]
[1645249194510,0.88873,2814.3,2813.9,0.00195774]
[1645249195009,0.88873,2814.3,2814.0,0.0022772]
[1645249195710,0.88873,2814.3,2813.9,0.00195774]
[1645249195911,0.88873,2814.3,2814.0,0.0022772]
[1645249196710,1.77745,2814.3,2814.0,0.0022772]
[1645249196911,1.77745,2814.3,2813.9,0.00195774]
[1645249197155,1.77745,2814.3,2814.0,0.0022772]
[1645249197357,1.77745,2814.3,2814.0,0.5022772]
[1645249197560,3.5,2814.2,2814.0,0.5022772]
[1645249197759,3.5,2814.2,2814.0,0.4824772]
[1645249197962,3.5,2814.2,2813.9,5.774e-05]
[1645249197963,8.5,2814.1,2813.9,5.774e-05]
[1645249198158,3.5,2814.0,2813.7,0.25]
[1645249198358,4.38895,2814.0,2813.7,0.00400885]
[1645249199361,5.27791,2814.0,2813.7,0.00400885]
[1645249199559,0.88894,2813.9,2813.7,0.00400885]
[1645249199762,3.5,2813.8,2813.7,0.00400885]
[1645249199960,3.5,2813.8,2813.1,0.00400885]
[1645249200159,0.88896,2813.7,2813.1,0.00400885]
[1645249201412,1.7779182,2813.7,2813.1,0.00400885]
[1645249201616,0.88896,2813.6,2813.1,0.00400885]
[1645249202013,0.88896,2813.6,2813.3,0.00227754]
[1645249202215,4.38896,2813.6,2813.3,0.00227754]
[1645249202613,0.88896,2813.6,2813.3,0.00227754]
[1645249203015,0.88896,2813.6,2812.9,7.6676]
[1645249203016,3.5,2813.5,2812.9,7.6676]
[1645249203225,3.5,2813.5,2812.3,8.01689396]
[1645249203226,5.01244497,2813.2,2812.3,8.01689396]
[1645249203421,5.01244497,2813.2,2812.1,1.08275618]
[1645249203422,0.8893281,2813.0,2812.9,0.0039699]
[1645249203617,7.94793318,2813.0,2812.0,0.25]
[1645249203818,7.94793318,2813.0,2812.2,0.00395048]
[1645249203819,2.68682362,2812.9,2812.2,0.00395048]
[1645249204015,0.97274116,2812.7,2811.8,0.00395048]
[1645249204218,2.8460555,2812.6,2811.8,0.00395048]
[1645249204415,0.88939,2812.4,2811.8,0.00395048]
[1645249204681,6.3460555,2812.6,2811.8,0.00395048]
[1645249204682,0.8894091,2812.3,2811.8,0.00395048]
[1645249205271,2.6683034,2812.3,2811.8,0.00395048]
[1645249205472,0.8894091,2812.3,2811.8,0.00395048]
[1645249205670,0.88947,2812.2,2811.8,0.00395048]
[1645249205870,0.8893132,2812.4,2811.8,0.00395048]
[1645249206670,0.8893132,2812.4,2812.0,0.00228095]
[1645249206877,0.88936,2812.3,2812.0,0.00228095]
[1645249207575,4.38936,2812.3,2812.0,0.00228095]
[1645249207774,1.7787953,2812.3,2811.8,0.00395048]
[1645249208178,0.88942,2812.1,2812.0,0.00228092]
[1645249208810,0.88942,2812.2,2812.0,0.00228092]
[1645249209008,0.88942,2812.2,2811.8,0.00395048]
[1645249209210,0.88942,2812.2,2811.9,0.00228097]
[1645249209610,4.38942,2812.2,2811.9,0.00228097]
[1645249210211,0.88942,2812.2,2812.0,20.180853]
[1645249210713,4.38942,2812.2,2812.0,20.180853]
[1645249211210,0.88942,2812.2,2812.0,20.180853]
[1645249211417,2.66837,2812.2,2812.0,20.180853]
[1645249211611,2.66837,2812.2,2812.0,20.18313395]
[1645249211612,6.16837,2812.2,2812.0,20.18313395]
[1645249212017,6.16837,2812.2,2812.0,20.13313395]
[1645249212259,3.5,2812.1,2812.0,20.03313395]
[1645249212460,3.5,2812.1,2812.0,20.030853]
[1645249212665,3.5,2812.1,2812.0,5.3e-05]
[1645249212863,3.5,2812.1,2811.9,0.00228097]
[1645249212864,8.5,2812.0,2811.9,0.00228097]
[1645249213061,13.7792,2812.0,2811.9,0.00228097]
[1645249213662,13.7792,2812.0,2811.3,0.00395048]
[1645249213863,15.58429696,2812.0,2811.8,0.00127456]
[1645249214064,5.27912,2811.9,2811.8,0.00127456]
[1645249214269,1.77912,2811.9,2811.8,0.00127456]
[1645249214464,1.7791192,2811.9,2811.8,0.00127456]
[1645249214669,5.2791192,2811.9,2811.8,0.00127456]
[1645249214865,5.2791192,2811.9,2811.1,0.00395048]
[1645249215072,1.77946,2811.7,2811.1,0.00395048]
[1645249215271,1.77946,2811.7,2811.3,0.00913611]
[1645249215272,3.5,2811.6,2811.3,0.00913611]
[1645249215940,3.5,2811.6,2810.7,0.01812132]
[1645249215941,2.73129308,2811.2,2810.7,0.01812132]
[1645249216137,1.77987,2811.1,2810.7,0.01812132]
[1645249216538,5.27987,2811.1,2810.7,0.01812132]
[1645249216735,6.1698174,2811.1,2810.7,0.01812132]
[1645249217340,2.05981353,2811.0,2810.7,0.01812132]
[1645249217537,2.05981353,2811.0,2810.2,0.46812132]
[1645249217538,0.89001,2810.8,2810.2,0.46812132]
[1645249217738,0.8899854,2810.7,2810.2,0.46812132]
[1645249217936,3.6778,2811.2,2810.2,0.46812132]
[1645249218136,3.6778,2811.2,2810.2,4.06812132]
[1645249218535,3.5,2811.2,2810.2,4.06812132]
[1645249218737,3.5,2811.2,2810.6,0.00127154]
[1645249218738,0.88983,2810.9,2810.6,0.00127154]
[1645249219679,0.88983,2810.9,2810.2,4.01812132]
[1645249219872,0.8898957,2810.8,2810.2,4.01812132]
[1645249220074,0.8898957,2810.8,2810.6,0.00228323]
[1645249220075,6.1697857,2810.8,2810.6,0.00228323]
[1645249220269,3.5,2810.7,2810.6,0.00228323]
[1645249220871,3.5,2810.7,2810.2,3.6]
[1645249221071,0.89004,2810.6,2810.2,3.6]
[1645249221271,3.5601288,2810.6,2810.5,0.00228327]
[1645249221668,3.5601288,2810.6,2810.2,3.55228327]
[1645249221669,6.89004,2810.5,2810.2,3.55228327]
[1645249221869,2.67011,2810.5,2810.2,3.55228327]
[1645249222070,0.89004,2810.4,2810.2,3.55228327]
[1645249222271,1.78007,2810.4,2810.2,3.55228327]
[1645249223521,5.67647401,2811.4,2810.2,3.55228327]
[1645249223711,0.1779,2811.0,2810.2,3.55354814]
[1645249223912,3.23775558,2811.3,2810.2,3.55354814]
[1645249224314,1.7800616,2810.4,2810.2,3.55354814]
[1645249224514,1.7800616,2810.4,2810.2,3.55228327]
[1645249224515,1.78007,2810.4,2810.2,3.55228327]
[1645249226013,1.78007,2810.4,2810.2,3.5545667]
[1645249226215,1.77650849,2810.4,2810.2,3.5545667]
[1645249226613,2.31436921,2810.4,2810.2,3.5545667]
[1645249227014,2.31436921,2810.4,2810.2,3.55228327]
[1645249227263,0.53786072,2810.4,2810.2,3.5545667]
[1645249228260,0.53786072,2810.4,2810.2,3.55228327]
[1645249228461,0.53786072,2810.4,2810.2,3.5545667]
[1645249229261,0.53786072,2810.4,2810.2,8.5545667]
[1645249229463,0.53786072,2810.4,2810.2,8.55228327]
[1645249229661,0.53786072,2810.4,2810.2,8.5545667]
[1645249229861,0.53786072,2810.4,2810.3,1.18884633]
[1645249230660,0.53786072,2810.4,2810.2,8.55228327]
[1645249230921,0.53786072,2810.4,2810.2,8.55456668]
[1645249231817,0.53786072,2810.4,2810.2,8.55228327]
[1645249232016,0.53786072,2810.4,2810.2,8.5545667]
[1645249232421,0.53786072,2810.4,2810.2,9.74762902]
[1645249233020,0.83996565,2810.8,2810.2,9.74534559]
[1645249233219,0.53008361,2810.8,2810.5,5.0]
[1645249233518,0.53008361,2810.8,2810.3,5.0]
[1645249233716,0.53008361,2810.8,2810.3,4.95]
[1645249234318,1.41998361,2810.8,2810.3,4.95]
[1645249234519,1.41998361,2810.8,2810.4,0.00228336]
[1645249234777,3.5,2810.7,2810.4,0.00228336]
[1645249234974,1.41998361,2810.8,2810.4,0.00228336]
[1645249235375,1.41998361,2810.8,2810.2,4.74534559]
[1645249235676,1.41998361,2810.8,2810.4,0.00228338]
[1645249236472,1.41998361,2810.8,2810.2,4.74534559]
[1645249236873,1.41998361,2810.8,2810.4,0.00228338]
[1645249237775,0.88995,2810.7,2810.2,3.55228327]
[1645249237979,0.88995,2810.7,2810.4,0.00228338]
[1645249238174,1.41998361,2810.8,2810.4,0.00228338]
[1645249238416,1.41998361,2810.8,2810.5,4.95]
[1645249238618,1.41998361,2810.8,2810.4,0.00228338]
[1645249239016,1.41998361,2810.8,2810.5,4.95]
[1645249239515,1.41998361,2810.8,2810.4,0.00228338]
[1645249239716,1.41998361,2810.8,2810.5,4.95]
[1645249240415,1.41998361,2810.8,2810.3,1.01036968]
[1645249240416,1.41998361,2810.8,2810.4,0.00228339]
[1645249240619,1.41998361,2810.8,2810.5,4.95]
[1645249240817,1.41998361,2810.8,2810.4,0.00228339]
[1645249241020,1.41998361,2810.8,2810.5,4.95]
[1645249241418,5.27987,2811.0,2810.4,0.00228339]
[1645249241419,1.42004361,2811.0,2810.4,8.5]
[1645249241625,0.52,2811.4,2810.9,4.9]
[1645249241626,0.1778,2811.4,2810.9,4.9]
[1645249241824,0.54741673,2811.6,2811.2,4.9]
[1645249242166,0.54741673,2811.6,2810.8,4.5146]
[1645249242368,0.54741673,2811.6,2811.0,4.9]
[1645249242568,0.54741673,2811.6,2810.8,4.9]
[1645249242569,1.43495431,2811.6,2810.8,4.9]
[1645249242764,1.43495431,2811.6,2810.7,1.2218]
[1645249242967,1.43723693,2811.6,2810.7,1.2218]
[1645249243168,0.88974,2811.5,2810.7,1.2218]
[1645249244365,0.88981,2811.4,2810.7,1.2218]
[1645249244567,0.88981,2811.3,2810.7,1.2218]
[1645249244965,0.88981,2811.3,2810.6,5.82159129]
[1645249245933,1.77964,2811.3,2810.6,4.9]
[1645249247930,1.46976363,2811.2,2810.7,0.0755114]
[1645249250665,1.46976363,2811.2,2810.7,0.0657501]
[1645249250872,1.46976363,2811.2,2810.6,4.9]
[1645249251072,0.88987,2811.1,2810.6,4.9]
[1645249251268,0.88987,2811.1,2810.6,4.85]
[1645249252169,0.88987,2811.1,2810.6,8.45]
[1645249254124,0.88987,2811.1,2810.6,3.6]
[1645249255725,1.06767,2811.1,2810.6,3.6]
[1645249256330,0.8899883,2811.0,2810.6,3.6]
[1645249256524,1.78006,2810.8,2810.6,3.6]
[1645249257183,1.78006,2810.8,2810.6,1.98886849]
[1645249259076,2.32291408,2810.8,2810.6,1.98886849]
[1645249270717,2.32291408,2810.8,2810.7,0.07551934]
[1645249270921,3.77026864,2810.8,2810.7,0.07551934]
[1645249276222,2.88023864,2810.8,2810.7,0.07551934]
[1645249277222,3.77019864,2810.8,2810.7,0.07552106]
[1645249277436,3.77019864,2810.8,2810.6,1.99276256]
[1645249277622,2.32284408,2810.8,2810.6,1.98886849]
[1645249277823,1.44713855,2810.7,2810.6,1.98886849]
[1645249278024,1.44713855,2810.7,2810.6,2.06438996]
[1645249281969,4.94713855,2810.7,2810.6,2.06438996]
[1645249282270,1.44713855,2810.7,2810.6,2.06438996]
[1645249282676,1.44713855,2810.7,2810.6,1.98886849]
[1645249282870,4.94713855,2810.7,2810.6,1.98886849]
[1645249283075,1.44713855,2810.7,2810.6,2.06439342]
[1645249283278,1.44713855,2810.7,2810.6,1.98886849]
[1645249283522,1.44713855,2810.7,2810.6,2.06439189]
[1645249286525,4.94713855,2810.7,2810.6,2.06439189]
[1645249286724,1.44713855,2810.7,2810.6,2.06439189]
[1645249286926,1.44713855,2810.7,2810.6,1.98886849]
[1645249287180,4.94713855,2810.7,2810.6,2.06439325]
[1645249287372,1.44713855,2810.7,2810.6,2.064393]
[1645249287570,1.44713855,2810.7,2810.6,1.98886849]
[1645249288171,1.44713855,2810.7,2810.6,2.06439246]
[1645249288372,1.44713855,2810.7,2810.6,1.98886849]
[1645249288672,1.44713855,2810.7,2810.6,2.06439226]
[1645249288871,1.44713855,2810.7,2810.6,1.98886849]
[1645249289076,1.44713855,2810.7,2810.6,2.06439323]
[1645249289273,1.44713855,2810.7,2810.6,1.98886849]
[1645249289474,1.44713855,2810.7,2810.6,2.06439289]
[1645249289772,1.44713855,2810.7,2810.6,1.98886849]
[1645249289975,1.44713855,2810.7,2810.6,2.06439217]
[1645249290274,1.44713855,2810.7,2810.6,1.98886849]
[1645249290671,1.44713855,2810.7,2810.6,2.06439229]
[1645249290914,1.44713855,2810.7,2810.6,2.06439224]
[1645249291118,1.44713855,2810.7,2810.6,1.98886849]
[1645249291315,1.44713855,2810.7,2810.6,2.06439344]
[1645249291515,1.44713855,2810.7,2810.6,1.98886849]
[1645249291717,1.44713855,2810.7,2810.6,2.0643935]
[1645249291915,1.44713855,2810.7,2810.6,1.98886849]
[1645249292117,1.44713855,2810.7,2810.6,2.06439339]
[1645249292317,1.44713855,2810.7,2810.6,1.98886849]
[1645249292515,1.44713855,2810.7,2810.6,2.06439334]
[1645249292715,1.44713855,2810.7,2810.6,1.98886849]
[1645249292915,1.44713855,2810.7,2810.6,2.06439355]
[1645249293120,1.44713855,2810.7,2810.6,1.98886849]